Cogmind - Beta 15 @@@ ROGUE MODE // 2025.07.23 @ 09:25:06 Player: Dew Result: Destroyed by H8-YQH(z) with Zionite Laser-S Performance ------------- Evolutions (1) 500 Regions Visited (5) 1000 Robots Destroyed (13) 65 Value Destroyed (335) 335 Prototype IDs (2) 40 Alien Tech Used (0) 0 Bonus (300) 300 TOTAL SCORE: 2240 Bonus ------- Met Imprinter 300 Cogmind --------- Core Integrity 0/400 Matter 237/300 Energy 99/100 System Corruption 0% Temperature Cool (9) Movement Core (50) Location -7/Deep Caves Parts ------- > --- POWER (1) -------- (None) > --- PROPULSION (3) --- (None) > --- UTILITY (3) ------ Experimental Optical Array Experimental Terrain Scan Processor Advanced Hacking Suite > --- WEAPON (2) ------- CR-A16's Pointy Stick > --- INVENTORY (5) ---- Relay Coupler [Grunt] (64) Medium Laser Light Cannon Heavy Rocket Launcher Peak State ------------ > --- POWER ------------ Ion Engine > --- PROPULSION ------- Flight Unit Flight Unit > --- UTILITY ---------- Experimental Optical Array Experimental Terrain Scan Processor Advanced Hacking Suite > --- WEAPON ----------- Plasma Cutter CR-A16's Pointy Stick > --- INVENTORY -------- Relay Coupler [Grunt] Medium Laser Light Cannon Heavy Rocket Launcher Mining Claw [Rating: 32] Favorites ----------- Power Ion Engine Engine Ion Engine Propulsion Aluminum Leg Treads Light Treads Leg Aluminum Leg Flight Unit Flight Unit Utility Small Storage Unit Device Sensor Array Storage Small Storage Unit Processor Experimental Terrain Scan Processor Hackware Advanced Hacking Suite Weapon Medium Laser Energy Gun Medium Laser Ballistic Gun Autogun Ballistic Cannon Light Cannon Special Weapon Plasma Cutter Slashing Weapon Mining Claw Piercing Weapon CR-A16's Pointy Stick Build | -11 -10 -9 -9 -7 -7 ------- Run | Yrd Mat Mat Min Zio Dee Slots Evolved 2 | . . 2 . . . Power . | . . . . . . Propulsion 1 | . . 1 . . . Utility 1 | . . 1 . . . Weapon . | . . . . . . Parts Attached 25 | . 6 11 2 6 . Power 3 | . 1 1 1 . . Engine 3 | . 1 1 1 . . Core . | . . . . . . Reactor . | . . . . . . Propulsion 8 | . 2 5 1 . . Treads 2 | . . 2 . . . Leg 2 | . 2 . . . . Wheel . | . . . . . . Hover . | . . . . . . Flight 4 | . . 3 1 . . Utility 5 | . 1 . . 4 . Device 1 | . 1 . . . . Storage . | . . . . . . Processor 3 | . . . . 3 . Hackware 1 | . . . . 1 . Protection . | . . . . . . Artifact . | . . . . . . Weapon 9 | . 2 5 . 2 . Energy Gun 1 | . 1 . . . . Energy Cannon . | . . . . . . Ballistic Gun 2 | . . 2 . . . Ballistic Cannon 3 | . . 3 . . . Launcher . | . . . . . . Special Weapon 1 | . . . . 1 . Impact Weapon . | . . . . . . Slashing Weapon 1 | . 1 . . . . Piercing Weapon 1 | . . . . 1 . Special Melee Weapon . | . . . . . . Unidentified Prototypes 2 | . . . . 2 . Parts Lost 14 | . 4 5 1 . 4 Power 3 | . 1 1 . . 1 Propulsion 6 | . 2 1 1 . 2 Utility 1 | . . 1 . . . Weapon 4 | . 1 2 . . 1 Highest Loss Streak 4 | . 4 2 3 . 3 To Critical Strikes . | . . . . . . Average Backups 5 | 6 5 5 2 4 4 Power . | 1 . . . . . Propulsion 1 | 4 3 1 . . . Utility . | . . . . . 1 Weapon 2 | 1 1 4 2 3 3 Tool/Special . | . . . . . . Unused Backups 4 | . . 2 . . 2 Power 1 | . . 1 . . . Propulsion . | . . . . . . Utility 1 | . . . . . 1 Weapon 2 | . . 1 . . 1 Tool/Special . | . . . . . . Average Slot Usage (%) 72 | . 89 67 49 67 59 Engine 10 | . 13 6 8 11 10 Treads 1 | . . 6 . . . Leg 11 | . 28 13 . . . Flight 9 | . . 5 24 22 4 Device 3 | . 8 6 . . . Storage 6 | . 14 9 . . . Processor 7 | . . . . 15 22 Hackware 3 | . . . . 7 11 Energy Gun 8 | . 19 . 8 7 . Ballistic Gun 1 | . . 5 . . . Ballistic Cannon 3 | . . 13 8 . . Slashing Weapon 1 | . 5 . . . . Piercing Weapon 2 | . . . . 3 11 Peak Build Rating 32 | 6 7 8 5 32 31 Average Rating 13 | 6 6 6 4 21 27 On Entrance 9 | 6 6 7 3 4 30 Naked Turns . | . . . . . . Heaviest Build 17 | 12 15 17 10 8 9 Greatest Support 40 | 20 20 40 8 8 8 Greatest Overweight (x) 2 | . 2 . 1 . 2 Average Overweight (x) . | . . . . . 1 Largest Inventory Capacity 8 | 8 8 8 5 5 5 Average Capacity 6 | 8 8 7 5 5 5 Most Carried 8 | 6 8 8 4 5 5 Average Carried 5 | 6 5 5 2 4 4 Final Capacity 8 | 8 8 5 5 5 5 Final Carried 6 | 6 3 5 3 5 4 Class Distribution -------------------- 100% | Mutant Dominant Class ---------------- Mutant | -10/Materials Mutant | -9/Materials Mutant | -9/Mines Mutant | -7/Zion Mutant | -7/Deep Caves Resources | -11 -10 -9 -9 -7 -7 ----------- Run | Yrd Mat Mat Min Zio Dee Matter Collected 582 | 200 . 273 . 82 27 Remotely . | . . . . . . Salvage Created 400 | . 85 288 . . 27 Parts 25 | . 4 21 . . . Haulers Intercepted . | . . . . . . Recyclers Shooed . | . . . . . . Parts Field Recycled . | . . . . . . Retrieved Matter . | . . . . . . Parts Self-Destructed . | . . . . . . Prevented . | . . . . . . Kills | -11 -10 -9 -9 -7 -7 ------- Run | Yrd Mat Mat Min Zio Dee Combat Hostiles Destroyed 14 | . 2 10 . . 2 Melee 2 | . . . . . 2 Guns 5 | . 2 3 . . . Cannons 7 | . . 7 . . . Classes Destroyed 5 | . 1 3 . . 1 Worker 1 | . . 1 . . . Swarmer 4 | . . 4 . . . Grunt 6 | . 2 4 . . . Sentry 2 | . . 2 . . . Assembled 2 | . . . . . 2 Best Kill Streak 7 | . 2 7 . . 2 Combat Bots Only 7 | . 2 7 . . 2 Max Kills in Single Turn 1 | . 1 1 . . 1 Gunslinging . | . . . . . . Exploded . | . . . . . . Melee 1 | . . . . . 1 Uniques/NPCs Destroyed . | . . . . . . Combat | -11 -10 -9 -9 -7 -7 -------- Run | Yrd Mat Mat Min Zio Dee Hostile Shots Fired 257 | . 67 140 20 . 30 Missed 87 | . 18 47 7 . 15 Hits 170 | . 49 93 13 . 15 Melee 7 | . . 3 . . 4 Projectile 163 | . 49 90 13 . 11 Critical Strikes 3 | . 1 1 . . 1 Damage Taken 2013 | . 623 945 103 . 342 Core 556 | . 141 159 49 . 207 Absorbed by Shields . | . . . . . . Regen/Repaired (Parts) 69 | . . . . 69 . Core Remaining (%) 71 | 100 43 . . . . Volleys Fired 46 | . 13 31 . . 2 Largest 2 | . 2 2 . . 1 Hottest 90 | . 90 60 . . 20 Shots Fired 88 | . 24 62 . . 2 Gun 46 | . 24 22 . . . Cannon 40 | . . 40 . . . Launcher . | . . . . . . Special 2 | . . . . . 2 Kinetic 62 | . . 62 . . . Thermal 13 | . 11 . . . 2 Explosive . | . . . . . . Electromagnetic 13 | . 13 . . . . Robot Hit Streak 13 | . 7 13 . . 4 Robot Miss Streak 7 | . 2 7 . . 1 Penetration Max . | . . . . . . Secondary Targets . | . . . . . . Shots Hit Robots 58 | . 17 36 . . 5 Core Hits 23 | . 5 15 . . 3 Critical Kills . | . . . . . . Critical Parts Destroyed . | . . . . . . Critical Strikes 1 | . . 1 . . . Blast 1 | . . 1 . . . Melee Attacks 9 | . 4 . . . 5 Impact . | . . . . . . Slashing 4 | . 4 . . . . Piercing 5 | . . . . . 5 Sneak Attacks . | . . . . . . Combat Hostiles . | . . . . . . Follow-up Attacks . | . . . . . . Damage Inflicted 1010 | . 238 604 . . 168 Guns 379 | . 190 189 . . . Cannons 410 | . . 410 . . . Explosions . | . . . . . . Melee 206 | . 48 . . . 158 Ramming 5 | . . 5 . . . Kinetic 599 | . . 599 . . . Thermal 84 | . 74 . . . 10 Explosive . | . . . . . . Electromagnetic 116 | . 116 . . . . Impact . | . . . . . . Slashing 48 | . 48 . . . . Piercing 158 | . . . . . 158 Highest Corruption . | . . . . . . Average Corruption . | . . . . . . Corruption Purged . | . . . . . . Corruption Blocked . | . . . . . . Overload Shots . | . . . . . . Overflow Damage 12 | . . . . . 12 Projectiles . | . . . . . . Explosions . | . . . . . . Melee 12 | . . . . . 12 Knockbacks 2 | . . 2 . . . Impact . | . . . . . . Kinetic 2 | . . 2 . . . Secondary . | . . . . . . Self-Inflicted Damage . | . . . . . . Shots . | . . . . . . Rammed 1 | . . 1 . . . Targets Rammed 1 | . . 1 . . . Kicked . | . . . . . . Crushed . | . . . . . . Highest Temperature 214 | . 214 25 . . . Average Temperature 78 | . 110 5 . . . Received Heat Transfer 618 | . 369 213 . . 36 Siege Activations . | . . . . . . Martial Activations . | . . . . . . Shielding Activations . | . . . . . . Robots Disrupted . | . . . . . . Combat Hostiles . | . . . . . . Robots Corrupted . | . . . . . . Combat Hostiles . | . . . . . . Parts Fried . | . . . . . . Impact Corruptions . | . . . . . . Robots Melted . | . . . . . . Combat Hostiles . | . . . . . . Parts Melted . | . . . . . . Heat Transferred 259 | . 222 . . . 37 Parts Sabotaged . | . . . . . . Parts Stolen . | . . . . . . Parts Stripped . | . . . . . . Power Chain Reactions . | . . . . . . Alert | -11 -10 -9 -9 -7 -7 ------- Run | Yrd Mat Mat Min Zio Dee Maximum Alert Level 1 | . . 1 . . . Low Security (%) 79 | 100 100 53 100 . . Level 1 20 | . . 46 . . . Level 2 . | . . . . . . Level 3 . | . . . . . . Level 4 . | . . . . . . Level 5 . | . . . . . . High Security . | . . . . . . Max Security . | . . . . . . Peak Influence 261 | . 95 261 82 . . Initial 82 | . . 35 82 . . Average 79 | . 18 151 68 . . Influence Increases 531 | . 175 356 . . . Destroy 0b10 Robot/C 240 | . 40 200 . . . Destroy 0b10 Robot/NC 5 | . . 5 . . . Destroy Leader 50 | . . 50 . . . Successful Hack 8 | . . 8 . . . Destroy Structure 3 | . . 3 . . . Lose Combat Pursuer 225 | . 135 90 . . . Influence Decreases 531 | . 90 230 149 62 . Entered New Map 241 | . . 50 129 62 . Time Decay 230 | . 90 130 10 . . Lost Part 60 | . . 50 10 . . Squads Dispatched 2 | . 1 1 . . . Investigation 1 | . 1 . . . . Extermination . | . . . . . . Reinforcement 1 | . . 1 . . . Assault . | . . . . . . Garrison . | . . . . . . Intercept . | . . . . . . Searches Triggered . | . . . . . . Construction Impeded . | . . . . . . Haulers Reinforced . | . . . . . . Active Scanning Responses . | . . . . . . Cargo Convoy Interrupts . | . . . . . . Stealth | -11 -10 -9 -9 -7 -7 --------- Run | Yrd Mat Mat Min Zio Dee Distress Signals 5 | . 4 1 . . . Communications Jammed . | . . . . . . Distress Signals . | . . . . . . Times Spotted 51 | . 13 25 6 . 7 Peak Tracking Total 8 | . 7 8 4 . 3 Tactical Retreats 8 | . 5 3 . . . Traps | -11 -10 -9 -9 -7 -7 ------- Run | Yrd Mat Mat Min Zio Dee Traps Triggered 1 | . 1 . . . . Indirectly . | . . . . . . Trap Hack Attempts . | . . . . . . Triggered . | . . . . . . Disarmed . | . . . . . . Reprogrammed . | . . . . . . Reused . | . . . . . . Traps Extracted . | . . . . . . Installed . | . . . . . . Triggered . | . . . . . . Machines | -11 -10 -9 -9 -7 -7 ---------- Run | Yrd Mat Mat Min Zio Dee Machines Disabled . | . . . . . . Max in Single Turn . | . . . . . . Machines Repaired . | . . . . . . Machines Dismantled . | . . . . . . Machines Sabotaged . | . . . . . . Overloaded Fab Kills . | . . . . . . Hacking | -11 -10 -9 -9 -7 -7 --------- Run | Yrd Mat Mat Min Zio Dee Machines Accessed 3 | . 2 1 . . . Terminals 3 | . 2 1 . . . Fabricators . | . . . . . . Repair Stations . | . . . . . . Recycling Units . | . . . . . . Scanalyzers . | . . . . . . Garrison Access . | . . . . . . Total Hacks 9 | . 4 5 . . . Successful 5 | . 1 4 . . . Failed 4 | . 3 1 . . . Catastrophic . | . . . . . . Database Lockouts . | . . . . . . Manual 6 | . 1 1 . 4 . Terminals 9 | . 4 5 . . . Fabricators . | . . . . . . Repair Stations . | . . . . . . Recycling Units . | . . . . . . Scanalyzers . | . . . . . . Garrison Access . | . . . . . . Terminal Hacks 5 | . 1 4 . . . Emergency Access Points 1 | . . 1 . . . Alert Level 1 | . . 1 . . . Locate Traps 1 | . . 1 . . . Maintenance Status 1 | . . 1 . . . Investigation Status 1 | . 1 . . . . Fabricator Hacks . | . . . . . . Repair Station Hacks . | . . . . . . Recycling Unit Hacks . | . . . . . . Scanalyzer . | . . . . . . Garrison Access Hacks . | . . . . . . Unauthorized Hacks . | . . . . . . Terminals . | . . . . . . Fabricators . | . . . . . . Repair Stations . | . . . . . . Recycling Units . | . . . . . . Scanalyzers . | . . . . . . Garrison Access . | . . . . . . Data Cores Recovered . | . . . . . . Used . | . . . . . . Hacking Detections 3 | . 2 1 . . . Full Trace Events . | . . . . . . Feedback Events . | . . . . . . Feedback Blocked . | . . . . . . Robot Schematics Acquired . | . . . . . . Robots Built . | . . . . . . Authchips . | . . . . . . Time . | . . . . . . Total Robot Build Rating . | . . . . . . Part Schematics Acquired . | . . . . . . Parts Built . | . . . . . . Authchips . | . . . . . . Time . | . . . . . . Total Part Build Rating . | . . . . . . Parts Repaired . | . . . . . . Time . | . . . . . . Parts Recycled . | . . . . . . Recycled Matter . | . . . . . . Retrieved Matter . | . . . . . . Retrieved Components . | . . . . . . Parts Scanalyzed . | . . . . . . Part Schematics Acquired . | . . . . . . Parts Damaged . | . . . . . . Bothacking | -11 -10 -9 -9 -7 -7 ------------ Run | Yrd Mat Mat Min Zio Dee Used RIF Installer . | . . . . . . Robots Hacked . | . . . . . . Non-combat . | . . . . . . Combat . | . . . . . . Robot Hacks Applied . | . . . . . . Relay Couplers Released . | . . . . . . Fabnet Peak Effective % . | . . . . . . Robots Rewired . | . . . . . . Allies Hacked . | . . . . . . Hacks Repelled . | . . . . . . Allies | -11 -10 -9 -9 -7 -7 -------- Run | Yrd Mat Mat Min Zio Dee Total Allies . | . . . . . . Largest Group . | . . . . . . Highest-Rated Group . | . . . . . . Highest-Rated Ally . | . . . . . . Total Orders . | . . . . . . Ally Attacks . | . . . . . . Total Damage . | . . . . . . Kills . | . . . . . . Allies Corrupted . | . . . . . . Allies Melted . | . . . . . . Intel | -11 -10 -9 -9 -7 -7 ------- Run | Yrd Mat Mat Min Zio Dee Active Infowar (turns) 549 | . 61 147 . 209 132 Optics 341 | . . . . 209 132 Sensors 208 | . 61 147 . . . Robot Analysis Total . | . . . . . . Derelict Logs Recovered 1 | . . . . 1 . Drone Launches . | . . . . . . Drone Recoveries . | . . . . . . Exploration | -11 -10 -9 -9 -7 -7 ------------- Run | Yrd Mat Mat Min Zio Dee Turns Passed 1034 | 2 306 265 30 299 132 Spaces Moved 1213 | 2 182 139 38 755 97 Core 75 | . 2 . . . 73 Treads 28 | . . 28 . . . Legs 251 | 2 180 69 . . . Wheels . | . . . . . . Hover . | . . . . . . Flight 859 | . . 42 38 755 24 Fastest Speed 34 | 120 120 34 37 37 37 Average Speed 64 | 120 120 103 70 37 113 Slowest Speed 200 | 120 150 160 117 37 200 Overloaded Moves . | . . . . . . Propulsion Burnouts . | . . . . . . Robots Hopped . | . . . . . . Potential Cave-ins . | . . . . . . Cave-ins Triggered . | . . . . . . Exploration Rate (%) 31 | 2 38 17 15 85 29 Regions Visited 5 Branch Regions 3 Pre-discovered Areas 2 | . . . . 2 . Known Exits Taken . | . . . . . . Unknown Exits Taken 5 | 1 1 1 1 1 . Scrap Searched 3 | . . . . 3 . Spaces Dug . | . . . . . . Terrain Destroyed . | . . . . . . Melee . | . . . . . . Projectile . | . . . . . . AOE . | . . . . . . Terrain Rammed . | . . . . . . Walls Destroyed . | . . . . . . Machines Disabled . | . . . . . . Actions | -11 -10 -9 -9 -7 -7 --------- Run | Yrd Mat Mat Min Zio Dee Total 1365 | 1 238 205 41 775 105 Wait 30 | . 28 2 . . . Move 1208 | 1 181 138 37 754 97 Hop . | . . . . . . Pick Up 19 | . 3 9 . 7 . Fast Attach 10 | . 1 4 . 5 . Attach 16 | . 5 6 3 1 1 Detach 8 | . 1 4 1 2 . Swap 1 | . . 1 . . . Drop 17 | . 2 9 . 6 . Fire 46 | . 13 31 . . 2 Melee 9 | . 4 . . . 5 Ram . | . . . . . . Kick . | . . . . . . Crush 1 | . . 1 . . . Escape Stasis . | . . . . . . Rewire . | . . . . . . Trap . | . . . . . . Miscellaneous . | . . . . . . Route ------- -11/Scrapyard -10/Materials -9/Materials -9/Mines (discovered 2 exits: [*Mat] / *Zio) -7/Zion -7/Deep Caves History --------- Turn | Location | Event 1 | -11/Scrapyard | Discovered new exit (range 1) 3 | -11/Scrapyard | Entered Materials 226 | -10/Materials | Lost 4 parts (1p2n1w) 245 | -10/Materials | Core integrity fell below 50% 294 | -10/Materials | Discovered new exit (range 14) 309 | -10/Materials | Entered another Materials area 309 | -9/Materials | Evolved 2 slots: Propulsion x1, Utility x1 353 | -9/Materials | Build established: Mutant 486 | -9/Materials | Destroyed 7 combat bots 567 | -9/Materials | Discovered new exit (range 16) 574 | -9/Materials | Entered Mines 575 | -9/Mines | Assembled infested the area 580 | -9/Mines | Assisted by a Guerilla fighting off Assembled 597 | -9/Mines | Core integrity fell below 50% 599 | -9/Mines | Discovered new exit (range 12) 601 | -9/Mines | A Derelict revealed a hidden shortcut to a safe place 604 | -9/Mines | Entered Zion 606 | -7/Zion | Lost 3 parts (2n1w) 653 | -7/Zion | Visited the Megawrench Repair Shop 653 | -7/Zion | Megawrench repaired 4 parts 684 | -7/Zion | Found Prototype Processor 684 | -7/Zion | Identified Exp. Terrain Scan Processor 706 | -7/Zion | Learned location of 1 exit from Factory 753 | -7/Zion | Learned location of Quarantine (-2) 765 | -7/Zion | Acquired unknown access codes intercepted by a Zionite 796 | -7/Zion | Found CR-A16's Pointy Stick 844 | -7/Zion | Learned Factory fabricator intel 866 | -7/Zion | Met Imprinter 896 | -7/Zion | Opened final containment barrier to the Deep Caves 902 | -7/Zion | Discovered new exit (range 3) 902 | -7/Zion | Saw the warning signs outside the Deep Caves entrance 903 | -7/Zion | Entered Deep Caves 962 | -7/Deep Caves | Lost 3 parts (2n1w) 1019 | -7/Deep Caves | Attacked by Z-Imprinter 1022 | -7/Deep Caves | Core integrity fell below 20% 1029 | -7/Deep Caves | Z-Facility disabled 1035 | -7/Deep Caves | Destroyed by H8-YQH(z) with Zionite Laser-S Last Messages --------------- [Achievement: Adventurer] LOCATION=UNKNOWN GOAL=ESCAPE 00918_ Flight Unit destroyed. 00922_ Destroyed Asb. Hover Unit. 00922_ Destroyed Asb. Blade. 00925_ as-88418 destroyed. 00927_ as-38291 destroyed. 00928_ Acquired 17 matter. 00929_ Plasma Cutter destroyed. 00931_ Flight Unit destroyed. 00935_ as-41851 destroyed. 00938_ Acquired 10 matter. 01008_ ZO-A1P(o) is busy at the terminal. 01011_ NEW_ZION: Z-Facility proximity alert. Z-Imprinter: GET AWAY FROM HERE! I've worked too hard for our future just to have you ruin everything! 01021_ ZO-A1P(o) is busy at the terminal. 01029_ Ion Engine destroyed. 01029_ Z-Facility disabled. Map ----- +----------------------------------------------------+ | | | | | | | | | | | | | | | | | | | | | | | | | | | | | | | ?????????????????????????????????????????????????? | | ??????????????????????????###############????????? | | ???????????????????????#### ##???????? | | ??????????????????????## #????###? | | ??????????##??????#??## ###### ## | | ????????###zzz#???# ## ## # # | | ???? # ## # | | ???? | | ???? | | ??? | | ??? @ | | ??? """"" """""" | | ???? """""""""""""" | | ???? """""""""""""" | | ???? """"""""""""" | | ????? """"""""""" | | ??????? """""""""""""" | | ???????? """""""""""""" | | ???????? ? """""""""""""" | | ??????????? ?????"""""""""" | | ???????????? ??????????" " " | | ???????????? ????????????"" | | ????????????? ? ?????????????" | | ?????????????? ???????????????""" | | ?????????????????????????????"""" | | ??????????????????????????????""""" | | ??????????????????????????????""""""" | | ?????????????????????????????? | | ???????????????????????????????? """ | | ??????????????????????????????? """"" | | ?????????????????????????????? "??"""" | | ???????????????????????????????????""" | | ????????????????????????????????????"" | | ????????????????????????????????????? | | ????????????????????????????????????? | +----------------------------------------------------+ Best States ------------- Heat Dissipation 28 Energy Generation 10 Energy Capacity 250 Matter Stores 300 Matter Capacity 300 Sight Range 23 Robot Scan Range 14 Terrain Scan Density 1010 Evasion (%) 62 Recoil Reduction 2 Offensive Hacking 14 Item Schematics ----------------- None Robot Schematics ------------------ None Fabricated ------------ Nothing Repaired ---------- Nothing Alien Tech Used ----------------- None Achievements -------------- Adventurer Signs Are For Wimps Challenges ------------ None Game ------ Seed JunkSkeletonScythe Manual? 0 Play Time 00:23:35 Cumulative 9.7 hours Start 2025.07.23 @ 09:00:19 End 2025.07.23 @ 09:25:06 Sessions 1 Manual Loads 0 Difficulty Rogue Special Mode None Game No. 13 Rogue 13 Adventurer 0 Explorer 0 Win Type - Total 0 Types 0/0/0/0/0/0/0/0/0/0 Lore% 5 Gallery% 14 Achievement% 17 Wizard Run 0 Options --------- Layout 0 ASCII 0 Keyboard 0 Movement Mouse Keybinds 0 Fullscreen 1 Font 24/Terminus Map View 76x50 Zoom Use 11% Tactical HUD 1 Map Filters NONE Filters NONE Steam 1 RUN: 1030713d-b167-4865-b120-4562abcd9709